bitfinex/quotes_ETHUSD_20250801
["timestamp","ask_amount","ask_price","bid_price","bid_amount"]
[1754064517361,6.615,3634.1,3633.7,2.7519849]
[1754064517362,4.34,3633.8,3633.7,2.7519849]
[1754064517553,6.615,3634.1,3633.9,2.75185725]
[1754064517866,4.342,3634.0,3632.7,2.75273338]
[1754064518052,4.342,3634.0,3633.7,2.75199805]
[1754064518278,4.4796,3634.0,3633.7,0.4612]
[1754064518478,0.1376,3633.8,3633.4,3.42425773]
[1754064518676,0.1376,3633.8,3633.4,0.4612]
[1754064518677,0.1376,3633.6,3633.4,0.4612]
[1754064518878,0.1376,3633.6,3633.0,0.4612]
[1754064519084,0.1376,3633.4,3633.1,0.4504]
[1754064519255,6.615,3634.1,3633.4,2.75224148]
[1754064519256,0.1376,3633.6,3633.4,2.75224148]
[1754064519452,4.342,3633.5,3633.4,0.4612]
[1754064519753,7.54213659,3633.5,3632.9,0.4612]
[1754064520063,0.1376,3633.3,3632.8,0.4524]
[1754064520393,4.342,3633.2,3633.1,2.75247034]
[1754064520686,4.342,3633.2,3633.1,3.66604066]
[1754064521061,4.342,3633.2,3633.1,0.9136]
[1754064521283,4.4796,3633.2,3633.1,0.002]
[1754064521675,4.4796,3633.2,3633.1,2.75447034]
[1754064521877,4.4796,3633.2,3633.1,0.002]
[1754064522255,4.4796,3633.2,3633.1,2.75447034]
[1754064522451,0.1376,3633.2,3633.1,3.66607034]
[1754064522656,4.342,3633.2,3633.1,0.9136]
[1754064522982,4.342,3633.2,3633.1,3.66607034]
[1754064523191,4.342,3633.2,3633.1,0.002]
[1754064523394,4.92756,3633.2,3633.1,0.002]
[1754064523904,7.67995458,3633.2,3633.1,0.002]
[1754064524488,4.92756,3633.2,3633.1,0.002]
[1754064524853,0.1376,3633.2,3633.1,0.002]
[1754064525207,4.4786,3633.2,3633.1,0.002]
[1754064525353,7.23099458,3633.2,3633.1,0.002]
[1754064525752,7.68339458,3633.2,3633.1,0.002]
[1754064526356,7.23099458,3633.2,3633.1,0.002]
[1754064526611,9.36676575,3634.1,3633.1,0.002]
[1754064526612,6.615,3634.1,3633.1,0.002]
[1754064526891,0.1376,3633.2,3633.1,3.68717034]
[1754064527051,4.4766,3633.2,3633.1,3.68717034]
[1754064528286,4.339,3633.2,3633.1,3.68717034]
[1754064528698,6.615,3634.1,3633.6,2.75203391]
[1754064528901,4.4786,3634.0,3633.6,2.75203391]
[1754064529201,4.4786,3634.0,3633.7,0.9327]
[1754064529405,0.1376,3634.0,3633.9,2.75186438]
[1754064529575,0.1376,3634.3,3634.2,2.75163722]
[1754064529769,0.1376,3634.3,3634.2,3.68433722]
[1754064530288,4.35,3634.5,3634.4,2.7514858]
[1754064530491,4.35,3634.5,3634.2,0.9327]
[1754064530692,4.35,3634.5,3634.0,2.75177755]
[1754064530863,0.1376,3634.2,3634.1,0.9327]
[1754064531065,4.35,3634.5,3634.1,0.9327]
[1754064531293,0.1376,3634.4,3634.3,2.75156151]
[1754064531458,4.349,3634.4,3634.3,3.24586151]
[1754064531804,4.349,3634.4,3634.3,3.68426151]
[1754064531984,4.349,3634.4,3634.3,0.9327]
[1754064532603,4.79766,3634.4,3633.9,0.9327]
[1754064532802,0.1376,3634.2,3633.5,0.1376]
[1754064533113,5.25006,3634.4,3633.8,2.75187971]
[1754064533114,0.1376,3634.0,3633.8,2.75187971]
[1754064533403,4.353,3633.9,3633.7,2.75196885]
[1754064533579,4.353,3633.9,3633.6,0.4943]
[1754064533767,4.353,3633.9,3633.3,2.75226797]
[1754064533969,4.353,3633.9,3633.1,3.68716533]
[1754064533970,0.1376,3633.7,3633.2,0.1376]
[1754064534282,0.1376,3633.7,3633.2,1.0703]
[1754064534494,0.1376,3633.7,3633.3,0.4943]
[1754064534800,0.1376,3633.7,3633.5,2.75215073]
[1754064534953,0.1376,3633.7,3633.6,2.75209158]
[1754064535157,0.44866,3634.4,3633.9,2.75185389]
[1754064535357,0.1376,3634.0,3633.5,0.1376]
[1754064535595,2.75133735,3634.6,3633.1,0.002]
[1754064535892,4.348,3634.5,3634.1,2.75168783]
[1754064536089,4.348,3634.5,3634.2,2.75161818]
[1754064536259,0.1376,3634.4,3634.3,0.9327]
[1754064536459,0.58616,3634.4,3634.0,2.75176354]
[1754064536663,0.44856,3634.4,3633.9,3.68455703]
[1754064536958,2.75157571,3634.3,3633.7,2.75200014]
[1754064537157,0.1376,3634.2,3633.6,0.16512091]
[1754064537363,4.351,3634.1,3633.6,0.1376]
[1754064537599,4.351,3634.1,3633.9,2.75186126]
[1754064537969,4.351,3634.1,3633.8,2.75187562]
[1754064538187,4.351,3634.1,3633.8,2.75194011]
[1754064538492,4.351,3634.1,3633.1,0.002]
[1754064538493,5.1198657,3634.1,3633.1,0.002]
[1754064538693,0.59,3634.0,3633.6,2.75208294]
[1754064538894,2.88939773,3634.0,3633.5,0.1376]
[1754064539196,0.1376,3634.0,3633.8,2.75193184]
[1754064539408,0.1376,3634.0,3633.9,0.9327]
[1754064539712,4.4856,3634.0,3633.9,0.9327]
[1754064540203,14.4856,3634.0,3633.9,0.9327]
[1754064540576,14.4856,3634.0,3633.8,2.75191326]
[1754064540919,14.4856,3634.0,3633.7,2.75201353]
[1754064541080,14.4856,3634.0,3633.7,0.4943]
[1754064541285,14.4856,3634.0,3633.7,0.9327]
[1754064541682,14.4856,3634.0,3633.7,3.19040191]
[1754064541899,14.4856,3634.0,3633.7,0.4384]
[1754064542097,15.93416,3634.0,3633.5,0.1376]
[1754064542311,16.38656,3634.0,3633.5,0.1376]
[1754064542611,0.1376,3633.7,3633.2,0.1376]
[1754064542787,0.4524,3636.1,3633.6,0.9327]
[1754064543169,2.337,3635.5,3634.0,2.75177021]
[1754064543287,2.337,3635.5,3633.7,5.2847]
[1754064543609,4.363,3634.9,3633.8,0.9327]
[1754064543816,0.011,3634.9,3633.9,0.9327]
[1754064543993,4.351,3634.8,3634.0,0.9327]
[1754064544315,4.351,3634.8,3634.1,0.96021712]
[1754064544515,4.351,3634.8,3634.5,2.75138857]
[1754064544812,0.011,3634.9,3634.6,0.9327]
[1754064545017,4.351,3634.8,3634.7,2.7512587]
[1754064545214,4.351,3634.8,3634.7,3.6839587]
[1754064545390,4.351,3634.8,3634.3,0.4943]
[1754064545590,4.351,3634.8,3634.7,2.7512587]
[1754064546492,4.351,3634.8,3634.7,3.6839587]
[1754064546687,4.36,3634.9,3634.3,3.68421072]
[1754064546888,0.436,3634.8,3634.2,2.75163455]
[1754064547094,0.436,3634.8,3633.9,0.4943]
[1754064547294,3.18719645,3634.8,3634.1,2.75166445]
[1754064547598,0.436,3634.8,3634.4,2.7514517]
[1754064547803,4.36,3634.9,3634.6,2.75128544]
[1754064548020,4.349,3634.8,3634.6,0.9327]
[1754064548208,4.349,3634.8,3634.6,2.75132231]
[1754064548413,4.349,3634.8,3634.5,2.75140878]
[1754064548610,4.349,3634.8,3634.6,2.75132694]
[1754064548813,4.349,3634.8,3634.6,2.75132726]
[1754064549127,4.349,3634.8,3634.7,2.7512587]
[1754064549692,4.349,3634.8,3634.6,0.9327]
[1754064549894,4.349,3634.8,3634.2,3.45683077]
[1754064550094,4.349,3634.8,3634.2,3.24593273]
[1754064550327,4.349,3634.8,3634.5,2.75140605]
[1754064550821,5.06009644,3634.8,3634.2,0.2065181]
[1754064551031,0.4524,3634.7,3633.8,0.9327]
[1754064551190,0.95950964,3634.7,3634.1,2.75168582]
[1754064551395,3.71077529,3634.7,3634.1,2.75168582]
[1754064551697,0.95950964,3634.7,3634.1,2.75168582]
[1754064551898,3.71077058,3634.7,3634.1,2.75168582]
[1754064552129,1.5345882,3634.6,3634.1,0.20531982]
[1754064552425,4.28592747,3634.6,3633.8,2.75192489]
[1754064552722,2.75153891,3634.4,3633.7,2.75199958]
[1754064552902,4.343,3634.3,3633.7,2.75199958]
[1754064553086,0.1376,3634.1,3633.7,2.75201585]
[1754064553287,0.011,3634.9,3634.0,2.75178866]
[1754064553492,4.342,3634.8,3634.3,2.75151807]
[1754064553693,4.342,3634.8,3634.4,2.88908376]
[1754064553900,4.342,3634.8,3634.4,0.1376]
[1754064554431,4.342,3634.8,3634.3,2.75148673]
[1754064554634,0.1486,3634.9,3634.5,2.75140008]
[1754064554811,4.344,3634.8,3634.6,3.68397273]
[1754064555019,0.011,3634.9,3634.8,2.751183]
[1754064555211,0.011,3634.9,3634.8,2.888783]
[1754064555412,0.011,3634.9,3634.8,3.807983]
[1754064557918,0.011,3634.9,3634.8,2.751183]
[1754064558164,0.011,3634.9,3634.7,2.7512333]
[1754064558334,0.011,3634.9,3634.4,0.9192]
[1754064558539,0.011,3634.9,3634.4,2.75145812]
[1754064558711,7.61015441,3634.9,3634.2,2.75158666]
[1754064558912,7.41015441,3634.9,3634.2,2.75158666]
[1754064559107,7.41015441,3634.9,3634.2,2.75158311]
[1754064559334,2.75118672,3634.8,3634.1,2.7517003]
[1754064559545,2.75118672,3634.8,3634.2,2.75162159]
[1754064559737,5.67511328,3634.9,3634.2,2.75162159]
[1754064559738,8.42624624,3634.9,3634.2,2.75162159]
[1754064559951,5.67511328,3634.9,3633.9,2.75185613]
[1754064560114,2.7512334,3634.8,3634.1,2.75170167]
[1754064560313,7.41014685,3634.9,3634.2,2.75161326]
[1754064560612,0.001,3636.2,3634.5,6.96025382]
[1754064560851,0.001,3636.2,3635.8,2.75042631]
[1754064561051,0.001,3636.2,3634.9,3.0]
[1754064561236,0.001,3636.2,3635.6,0.9192]
[1754064561558,0.001,3636.2,3635.7,2.75048046]
[1754064561744,4.383,3636.2,3635.6,3.66972635]
[1754064561929,4.383,3636.2,3635.3,0.4544]
[1754064562266,4.383,3636.2,3635.8,2.75042631]
[1754064562751,4.383,3636.2,3635.8,3.66962631]
[1754064562951,4.383,3636.2,3635.8,0.9192]
[1754064563110,4.383,3636.2,3634.5,5.7513995]
[1754064563111,4.383,3636.2,3635.6,2.75051574]
[1754064563314,7.13317267,3636.2,3635.5,2.75060032]
[1754064563514,4.383,3636.2,3635.5,0.20371125]
[1754064563711,0.497,3635.8,3635.0,2.75096037]
[1754064563926,0.8227282,3635.8,3634.9,2.75109475]
[1754064564150,0.497,3635.8,3634.8,0.4648]
[1754064564357,3.24749835,3635.8,3634.8,0.4648]
[1754064564531,0.497,3635.8,3634.9,2.75110732]
[1754064564730,3.24743231,3635.8,3635.1,2.75089086]
[1754064564940,0.497,3635.8,3635.2,2.75087012]
[1754064565151,0.35934751,3635.7,3635.2,2.75087012]
[1754064565354,4.386,3635.6,3635.3,2.75078826]
[1754064565685,4.386,3635.6,3635.0,3.20536648]
[1754064565856,4.386,3635.6,3635.3,2.75079871]
[1754064566723,4.386,3635.6,3635.0,0.4544]
[1754064566924,4.386,3635.6,3635.0,3.20542616]
[1754064567126,4.386,3635.6,3635.5,2.75065328]
[1754064567364,0.01,3635.9,3635.5,3.66985328]
[1754064567553,4.383,3635.8,3635.7,2.75044732]
[1754064567952,4.383,3635.8,3635.6,3.66975407]
[1754064568152,4.83606,3635.8,3635.1,2.75093235]
[1754064568359,0.1376,3635.6,3635.2,2.75082633]
[1754064568542,0.1376,3635.6,3635.3,2.7507966]
[1754064569070,0.1376,3635.6,3635.2,0.9192]
[1754064569071,0.1376,3635.6,3635.1,0.1376]
[1754064569244,0.1376,3635.6,3635.1,2.88850924]
[1754064569639,0.1376,3635.6,3635.1,0.592]
[1754064569838,0.1376,3635.6,3635.2,3.20528028]
[1754064570870,0.1376,3635.6,3635.3,2.75079688]
[1754064571171,0.1376,3635.6,3635.1,0.1376]
[1754064571333,0.01,3635.9,3635.4,2.75072894]
[1754064571533,0.01,3635.9,3635.6,2.75051538]
[1754064571733,0.01,3637.9,3635.9,14.266998]
[1754064571972,1e-08,3636.8,3636.7,2.74974564]
[1754064572347,1e-08,3636.8,3636.7,3.66894564]
[1754064572670,1e-08,3636.8,3636.7,3.80654564]
[1754064572832,1e-08,3636.8,3636.7,3.83404309]
[1754064573236,1e-08,3636.8,3636.7,3.80654564]
[1754064575986,1e-08,3636.8,3636.7,3.83404309]
[1754064576343,1e-08,3636.8,3636.7,6.83404309]
[1754064576581,1e-08,3636.8,3636.7,6.80654564]
[1754064577597,1e-08,3636.8,3636.7,2.88734564]
[1754064577911,1e-08,3636.8,3636.7,8.20354564]
[1754064578361,0.004,3637.5,3637.0,2.74947256]
[1754064578544,0.004,3637.5,3637.4,2.74921647]
[1754064578893,0.004,3637.5,3637.4,2.88681647]
[1754064579192,0.004,3637.5,3637.4,3.80601647]
[1754064579804,0.004,3637.5,3637.4,4.01241708]
[1754064581388,0.004,3637.5,3637.4,3.54761708]
[1754064582056,0.004,3637.5,3637.4,0.34400061]
[1754064582391,0.004,3637.5,3637.4,0.20640061]
[1754064582587,0.004,3637.5,3637.2,0.1376]
[1754064582764,0.501,3637.5,3637.2,0.1376]
[1754064583992,0.9474,3637.4,3637.2,0.20859537]
[1754064584192,0.9474,3637.4,3636.8,2.7496547]
[1754064584392,0.9474,3637.4,3636.4,7.13693185]
[1754064584593,0.497,3637.4,3637.1,2.74942804]
[1754064584763,0.1376,3637.4,3637.1,0.20719166]
[1754064584961,0.004,3637.5,3637.4,2.74921647]
[1754064585895,0.004,3637.5,3637.3,0.1376]
[1754064586110,0.004,3637.5,3637.2,3.21411158]
[1754064586111,0.004,3637.5,3637.2,2.74931158]
[1754064586263,0.004,3637.5,3637.3,2.74928655]
[1754064586467,0.004,3637.5,3637.2,2.8869458]
[1754064586767,0.4772,3637.5,3637.2,2.88696199]
[1754064586985,0.004,3637.5,3637.2,0.1376]
[1754064587184,0.004,3637.5,3637.3,2.7492842]
[1754064587493,0.004,3637.5,3637.2,2.88694212]
[1754064587877,0.004,3637.5,3637.2,0.1376]
[1754064588078,3.5154269,3637.5,3637.2,0.1376]
[1754064588277,3.5154269,3637.5,3637.1,0.2042191]
[1754064588278,2.74936764,3637.2,3637.1,0.2042191]
[1754064588491,2.74954911,3637.0,3636.4,0.1376]
[1754064588679,2.88714911,3637.0,3636.4,2.88756924]
[1754064588874,0.79288168,3637.0,3636.4,0.1376]
[1754064589084,0.1376,3636.8,3636.3,0.1376]
[1754064589300,0.1376,3636.8,3636.4,2.74996859]
[1754064589600,0.9163,3637.1,3636.5,2.74983744]
[1754064589601,3.22264769,3637.1,3636.5,2.74983744]
[1754064589800,2.88711913,3637.0,3636.5,0.1376]
[1754064590004,0.74856173,3637.0,3636.5,0.1376]
[1754064590206,1.22176173,3637.0,3636.5,0.1376]
[1754064590572,0.4732,3636.9,3636.5,0.1376]
[1754064590772,0.1376,3636.7,3636.3,0.20208943]
[1754064591097,0.1376,3636.7,3636.2,0.1376]
[1754064591300,0.1376,3636.7,3635.3,0.13670242]
[1754064591301,2.74945492,3637.1,3636.3,0.8933]
[1754064591518,0.001,3637.4,3636.4,0.92079972]
[1754064591673,2.8869508,3637.3,3636.8,0.1376]
[1754064591876,3.22263294,3637.2,3636.8,0.1376]
[1754064592521,0.4732,3637.2,3636.8,0.1376]
[1754064592682,0.4732,3637.2,3636.5,2.7498732]
[1754064592683,0.6108,3637.1,3636.7,2.74970118]
[1754064592882,0.6108,3637.1,3636.7,2.74974564]
[1754064593100,0.1376,3637.1,3636.7,2.74974564]
[1754064593424,0.1376,3637.1,3636.6,0.1376]
[1754064593613,0.1376,3637.1,3636.7,2.7497371]
[1754064594189,0.1376,3637.1,3636.6,0.1376]
[1754064594390,0.1376,3637.1,3636.7,2.74971935]
[1754064594614,0.6108,3637.1,3636.6,0.1376]
[1754064594814,0.4732,3637.0,3636.5,2.74989687]
[1754064595013,0.1376,3636.9,3636.5,2.74989687]
[1754064595209,0.1376,3636.9,3636.6,2.74980568]
[1754064595488,0.1376,3636.9,3636.4,2.88756541]
[1754064595489,0.47361687,3636.9,3636.4,2.88755621]
[1754064595799,0.1376,3636.5,3636.2,0.20801502]
[1754064596011,2.75016916,3636.2,3635.4,0.4508]
[1754064596212,0.5637743,3636.1,3635.4,0.4508]
[1754064596388,0.5637743,3636.1,3635.7,2.75048291]
[1754064596588,0.4732,3636.0,3635.6,0.1376]
[1754064596819,0.4732,3636.0,3635.6,2.75055496]
[1754064596820,0.1376,3635.9,3635.6,2.75055496]
[1754064596987,0.1376,3635.9,3635.5,2.75062581]
[1754064597186,0.1376,3635.9,3635.8,2.75042631]
[1754064597390,0.1376,3635.9,3635.7,2.75048018]
[1754064597922,0.1376,3635.9,3635.6,2.75055734]
[1754064598291,0.1376,3635.9,3635.5,2.7506338]
[1754064598622,0.1376,3635.9,3635.7,2.75044798]
[1754064598801,0.1376,3635.9,3635.5,2.75063964]
[1754064598997,0.1376,3635.9,3635.4,0.20703468]
[1754064599208,0.1376,3635.9,3635.8,2.75042631]
[1754064599614,0.1376,3635.9,3635.6,2.75057762]
[1754064599615,0.1376,3635.9,3635.7,2.75047194]
[1754064599816,0.1376,3635.9,3635.6,2.75054744]
[1754064600016,0.1376,3635.9,3635.3,0.1376]
[1754064600289,0.1376,3635.8,3635.4,2.75067867]
[1754064600489,0.1376,3635.8,3635.7,2.75050196]
[1754064600719,0.1376,3636.0,3635.8,2.75035958]
[1754064600929,0.1376,3636.0,3635.5,1.0309]
[1754064601129,0.1376,3636.0,3635.7,2.75046843]
[1754064601337,0.1376,3636.0,3635.8,2.75042382]
[1754064601646,0.6108,3636.0,3635.4,2.95880936]
[1754064601955,0.50803743,3635.9,3635.5,2.75060734]
[1754064602124,0.1376,3636.0,3635.8,2.75038504]
[1754064602426,0.1376,3636.0,3635.9,2.75035066]
[1754064602592,4.379,3636.2,3635.9,2.75035066]
[1754064602792,4.5166,3636.2,3635.8,2.75041882]
[1754064603024,4.5166,3636.2,3635.8,2.75041791]
[1754064603257,4.5166,3636.2,3635.9,2.75034034]
[1754064603424,5.24325177,3636.2,3635.9,2.75034034]
[1754064603927,5.10565177,3636.2,3635.6,0.3]
[1754064604309,0.1376,3635.9,3635.8,2.75042631]
[1754064604625,0.1376,3636.1,3636.0,2.75025775]
[1754064604924,4.5166,3636.2,3636.1,2.75019938]
[1754064605313,0.1376,3636.2,3636.1,2.75019938]
[1754064605517,4.5086,3636.2,3636.1,2.75019938]
[1754064605709,3.0,3637.2,3636.1,0.8933]
[1754064606026,2.74974072,3636.8,3636.1,2.7501985]
[1754064606227,0.1376,3636.4,3636.0,2.75024759]
[1754064606429,4.372,3636.3,3635.6,0.3]
[1754064606727,0.1376,3635.9,3635.8,2.75042631]
[1754064607922,0.6108,3635.9,3635.6,0.3]
[1754064608110,4.371,3635.8,3635.6,0.3]
[1754064608315,5.32561,3635.8,3635.6,0.3]
[1754064608715,0.1376,3635.7,3635.6,0.3]
[1754064609702,0.1376,3635.7,3635.6,3.05057762]
[1754064610232,4.371,3635.8,3635.7,2.75050196]
[1754064610447,4.371,3635.8,3635.7,3.20130196]
[1754064611100,4.371,3635.8,3635.6,0.3]
[1754064611505,4.82186,3635.8,3635.6,0.3]
[1754064612022,5.29506,3635.8,3635.6,0.3]
[1754064612222,0.6108,3635.7,3635.6,0.3]
[1754064612535,1.0539,3635.7,3635.6,0.302]
[1754064612739,4.82186,3635.8,3635.6,0.302]
[1754064613439,0.482186,3635.7,3635.6,0.302]
[1754064613613,0.955386,3635.7,3635.6,0.302]
[1754064614015,3.70588796,3635.7,3635.6,0.302]
[1754064614339,4.14898796,3635.7,3635.6,0.302]
[1754064614542,1.398486,3635.7,3635.6,0.302]
[1754064614751,0.482186,3635.7,3635.6,0.302]
[1754064619245,4.371,3635.8,3635.6,0.784]
[1754064619412,4.371,3635.8,3635.6,0.302]
[1754064619610,4.8538,3635.8,3635.6,0.302]
[1754064620049,4.371,3635.8,3635.6,0.302]
[1754064620423,2.75050196,3635.7,3635.6,0.302]
[1754064620628,1.2432302,3635.7,3635.6,0.302]
[1754064620829,3.51093216,3635.7,3635.6,0.302]
[1754064621030,3.99373216,3635.7,3635.6,0.302]
[1754064621252,4.45153216,3635.7,3635.6,0.302]
[1754064622850,8.13913216,3635.7,3635.6,0.302]
[1754064623648,0.55,3635.4,3634.7,0.002]
[1754064623819,5.75088028,3635.2,3634.7,0.002]
[1754064624021,2.751183,3634.8,3634.7,0.002]
[1754064624253,2.751183,3634.8,3634.7,1e-08]
[1754064624254,19.95440382,3634.8,3634.7,1e-08]
[1754064624550,23.10100382,3634.8,3634.7,1e-08]
[1754064625730,2.75178866,3634.0,3633.9,1e-08]
[1754064625931,10.65178866,3634.0,3633.9,1e-08]
[1754064626122,14.16613673,3634.0,3633.9,1e-08]
[1754064626631,8.32553673,3634.0,3633.9,1e-08]
[1754064626958,7.23838866,3634.0,3633.9,1e-08]
[1754064627428,7.24038866,3634.0,3633.9,0.48200001]
[1754064627635,7.24038866,3634.0,3633.9,1e-08]
[1754064630535,0.1376,3634.0,3633.9,1e-08]
[1754064630775,0.4828,3634.7,3633.9,1e-08]
[1754064630776,0.55022794,3634.8,3633.9,0.91070001]
[1754064631037,0.1376,3634.5,3634.1,2.7516426]
[1754064631268,4.349,3634.4,3634.2,3.66232898]
[1754064631467,4.349,3634.4,3634.3,0.9107]
[1754064633316,4.79766,3634.4,3633.9,0.13760001]
[1754064633439,4.79766,3634.4,3633.9,1e-08]
[1754064633640,4.346,3634.3,3634.1,2.75168449]
[1754064633873,4.346,3634.3,3634.2,0.4287]
[1754064634184,4.346,3634.3,3633.9,1e-08]
[1754064634340,0.1376,3634.0,3633.9,0.42870001]
[1754064634539,4.4856,3634.0,3633.9,0.42870001]
[1754064635039,4.4856,3634.0,3633.9,0.91070001]
[1754064635565,4.348,3634.0,3633.9,3.80014632]
[1754064635874,4.348,3634.0,3633.9,1.04830001]
[1754064636279,2.75209158,3633.6,3633.5,0.002]
[1754064636577,7.10809158,3633.6,3633.5,0.002]
[1754064636766,8.04869158,3633.6,3633.5,0.002]
[1754064637085,8.18629158,3633.6,3633.5,0.002]
[1754064637800,2.75239458,3633.2,3632.8,0.002]
[1754064637995,14.91701475,3632.9,3632.8,0.002]
[1754064638195,2.75315235,3632.2,3631.7,0.4287]
[1754064638492,7.13115235,3632.2,3631.5,0.482]
[1754064639257,7.61395235,3632.2,3631.3,0.4287]
[1754064639752,7.13115235,3632.2,3631.3,0.4287]
[1754064639955,8.1653538,3632.2,3631.5,0.482]
[1754064640551,4.374,3632.2,3632.1,3.67592816]
[1754064640753,4.374,3632.2,3632.1,0.9227]
[1754064640954,4.374,3632.2,3632.1,3.67592816]
[1754064641260,6.612,3633.2,3632.1,3.67589395]
[1754064641261,3.27523946,3633.1,3632.1,3.67589395]
[1754064641474,5.63895654,3633.0,3632.2,0.482]
[1754064641801,2.7528536,3632.6,3632.2,0.482]
[1754064641952,4.374,3632.5,3632.2,0.482]
[1754064642391,1.26395654,3633.0,3632.3,0.9107]
[1754064642597,4.374,3632.9,3632.5,2.75292298]
[1754064642802,5.10706055,3632.9,3632.6,0.9107]
[1754064642989,5.10706055,3632.9,3632.6,0.4287]
[1754064643188,5.10706055,3632.9,3632.7,0.482]
[1754064643585,6.612,3633.2,3632.8,0.9107]
[1754064643893,6.612,3633.2,3632.1,0.012]
[1754064643894,4.373,3633.1,3632.9,3.66329625]
[1754064644097,4.373,3633.1,3633.0,0.9107]
[1754064644398,4.373,3633.1,3633.0,0.482]
[1754064644560,4.373,3633.1,3633.0,0.9107]
[1754064644759,4.373,3633.1,3633.0,3.6632461]
[1754064645921,4.373,3633.1,3633.0,0.9107]
[1754064646191,4.373,3633.1,3633.0,0.482]
[1754064646395,4.373,3633.1,3633.0,2.7525461]
[1754064646763,4.369,3633.1,3632.9,2.75259882]
[1754064646964,4.369,3633.1,3632.9,3.24989882]
[1754064647181,4.369,3633.1,3633.0,2.7525461]
[1754064647395,4.369,3633.1,3633.0,3.2498461]
[1754064647594,4.369,3633.1,3632.7,0.4687]
[1754064647773,4.5066,3633.1,3632.9,2.75257239]
[1754064647973,4.5066,3633.1,3633.0,3.2498461]
[1754064648170,4.5066,3633.1,3633.0,0.966]
[1754064648363,4.366,3633.1,3633.0,3.7185461]
[1754064649580,6.7496,3633.2,3633.1,2.75247034]
[1754064649768,11.1146,3633.2,3633.1,3.71847034]
[1754064649963,11.1146,3633.2,3632.6,0.1376]
[1754064650170,12.08846,3633.2,3632.6,2.75280027]
[1754064650409,14.84087196,3633.2,3632.6,2.75280027]
[1754064650704,2.75247766,3633.1,3632.5,2.75290662]
[1754064650900,4.363,3633.0,3632.6,2.75280304]
[1754064651103,0.1376,3632.7,3632.6,2.75280304]
[1754064651283,4.4986,3632.7,3632.6,2.75280304]
[1754064651675,4.4986,3632.7,3632.3,3.25037058]
[1754064651876,4.4986,3632.7,3632.6,0.002]
[1754064652104,4.94846,3632.7,3632.6,0.002]
[1754064653796,8.19643341,3632.7,3632.6,0.002]
[1754064654214,8.66923341,3632.7,3632.6,0.002]
[1754064654373,7.70123341,3632.7,3632.6,0.002]
[1754064655104,4.94846,3632.7,3632.6,0.002]
[1754064656170,7.70123341,3632.7,3632.6,0.002]
[1754064656370,8.66923341,3632.7,3632.6,0.002]
[1754064656581,11.66923341,3632.7,3632.6,0.002]
[1754064656974,12.21923341,3632.7,3632.6,0.002]
[1754064657572,12.21123341,3632.7,3632.6,0.002]
[1754064658502,7.85823341,3632.7,3632.6,0.002]
[1754064658808,12.21123341,3632.7,3632.6,0.002]
[1754064659013,3.30315235,3632.2,3632.1,0.012]
[1754064659315,10.79175235,3632.2,3632.1,0.012]
[1754064659513,11.75975235,3632.2,3632.1,0.012]
[1754064659904,11.75975235,3632.2,3632.1,1e-08]
[1754064661218,2.75391055,3631.2,3631.1,0.01]
[1754064661510,7.10491055,3631.2,3631.1,0.01]
[1754064662512,11.62291055,3631.2,3631.1,0.01]
[1754064663116,11.15011055,3631.2,3631.1,0.01]
[1754064663499,3.0,3631.2,3631.1,0.01]
[1754064663706,7.348,3631.2,3631.1,0.976]
[1754064663902,6.616,3631.5,3631.4,2.75375888]
[1754064664214,10.965,3631.5,3631.4,0.966]
[1754064664416,6.616,3631.5,3631.4,3.71975888]
[1754064664717,10.968,3631.5,3631.4,3.71975888]
[1754064665212,6.616,3631.5,3631.4,3.71975888]
[1754064665413,1.49639218,3632.6,3631.9,2.75332043]
[1754064665616,4.35,3632.5,3632.0,0.966]
[1754064665802,3.0,3632.4,3632.1,0.966]
[1754064666001,3.0,3632.7,3632.3,2.75307534]
[1754064666203,6.617,3632.8,3632.4,0.966]
[1754064666403,4.351,3632.7,3632.4,0.966]
[1754064666725,4.351,3632.6,3632.5,3.71892498]
[1754064667019,4.351,3632.6,3632.5,0.966]
[1754064667232,4.351,3632.6,3632.5,3.71892498]
[1754064667933,6.617,3632.8,3632.5,3.71892498]
[1754064667934,6.617,3632.8,3632.7,2.75277341]
[1754064668149,10.967,3632.8,3632.7,2.75277341]
[1754064668301,0.86916722,3633.3,3633.2,2.75239458]
[1754064668635,4.35,3633.3,3633.2,0.966]
[1754064669302,4.35,3633.3,3633.2,3.71839458]
[1754064669699,4.35,3633.3,3632.9,2.75261331]
[1754064669927,0.01,3633.9,3633.0,0.966]
[1754064670127,7.347,3633.8,3633.0,0.966]
[1754064670332,2.75214673,3633.6,3633.0,3.71854547]
[1754064670649,4.352,3633.5,3633.0,3.71852372]
[1754064670946,4.352,3633.5,3633.1,0.4973]
[1754064671236,3.0,3633.8,3633.3,2.75230719]
[1754064671441,0.1376,3633.2,3632.9,2.75261349]
[1754064671636,3.01,3633.9,3633.4,0.4973]
[1754064671815,0.01,3633.9,3633.5,0.4973]
[1754064672020,3.0,3633.7,3633.5,0.4973]
[1754064672343,0.1376,3633.6,3633.3,0.4687]
[1754064672519,4.349,3633.5,3633.0,0.4973]
[1754064672722,0.1376,3633.4,3633.0,3.24984183]
[1754064672945,0.1376,3633.4,3633.0,2.75254183]
[1754064673232,4.348,3633.3,3633.2,2.75239458]
[1754064673436,0.1376,3633.7,3633.6,2.75209158]
[1754064673637,4.348,3633.7,3633.6,3.71809158]
[1754064673840,0.01,3633.9,3633.8,2.75194011]
[1754064674045,4.359,3633.9,3633.8,2.75194011]